bitfinex/quotes_SOLUSD_20250301
["timestamp","ask_amount","ask_price","bid_price","bid_amount"]
[1740801230786,6.4,147.08,147.03,0.03]
[1740801231288,6.5693,147.11,147.03,0.03]
[1740801231482,6.4,147.1,147.03,0.03]
[1740801232361,87.1,147.1,147.03,0.03]
[1740801234895,87.1,147.1,147.03,4.09815125]
[1740801235279,80.7,147.09,147.04,5.4406]
[1740801237390,80.7,147.09,147.03,0.03]
[1740801240303,18.64964886,147.08,147.03,0.03]
[1740801240504,80.7,147.07,147.03,0.03]
[1740801242067,86.1396,147.07,147.03,0.03]
[1740801243193,80.7,147.09,147.03,0.03]
[1740801245396,99.34964886,147.08,147.03,0.03]
[1740801245596,80.7,147.07,147.03,0.03]
[1740801245981,18.64964886,147.06,147.03,0.03]
[1740801246173,20.0,147.04,147.03,0.03]
[1740801246792,44.09024886,147.04,147.03,0.03]
[1740801247002,50.49024886,147.04,147.03,0.03]
[1740801247699,52.49024886,147.04,147.03,0.03]
[1740801248073,50.49024886,147.04,147.03,0.03]
[1740801248281,52.49024886,147.04,147.03,0.03]
[1740801249198,45.04964886,147.04,147.03,0.03]
[1740801251116,26.4,147.04,147.03,0.03]
[1740801252189,18.64964886,147.07,147.03,0.03]
[1740801252383,25.04964886,147.07,147.03,0.03]
[1740801253109,20.0,147.04,147.03,0.03]
[1740801254208,25.04964886,147.07,147.03,0.03]
[1740801255891,38.64964886,147.04,147.03,0.03]
[1740801258808,40.64964886,147.04,147.03,0.03]
[1740801259187,46.09024886,147.04,147.03,0.03]
[1740801260512,48.09024886,147.04,147.03,0.03]
[1740801261017,56.07254886,147.04,147.03,0.03]
[1740801262400,52.07254886,147.04,147.03,0.03]
[1740801262601,54.07254886,147.04,147.03,0.03]
[1740801262797,52.07254886,147.04,147.03,0.03]
[1740801263419,55.56946876,147.04,147.03,0.03]
[1740801263806,46.63194886,147.04,147.03,0.03]
[1740801264006,18.64964886,147.04,147.03,0.03]
[1740801264525,20.0,147.04,147.03,0.03]
[1740801264733,38.64964886,147.04,147.03,0.03]
[1740801267133,44.09024886,147.04,147.03,0.03]
[1740801269713,38.64964886,147.04,147.03,0.03]
[1740801270145,44.09024886,147.04,147.03,0.03]
[1740801271410,18.64964886,147.04,147.03,0.03]
[1740801271611,6.4,147.04,147.03,0.03]
[1740801271833,6.4,147.05,147.03,0.03]
[1740801272722,18.64964886,147.04,147.03,0.03]
[1740801273935,24.09024886,147.04,147.03,0.03]
[1740801274639,26.09024886,147.04,147.03,0.03]
[1740801275736,18.64964886,147.0,146.96,4.07037097]
[1740801275929,25.04964886,147.0,146.96,4.07037097]
[1740801276143,20.0,146.97,146.96,4.07037097]
[1740801276547,20.0,146.97,146.92,4.07037097]
[1740801277250,25.4433,146.97,146.92,4.07037097]
[1740801277456,5.4433,146.97,146.92,4.07037097]
[1740801277627,25.4433,146.97,146.92,4.07037097]
[1740801277950,25.4433,146.97,146.91,7.93]
[1740801278155,25.4433,146.97,146.96,0.03]
[1740801278331,44.09294886,146.97,146.96,0.03]
[1740801282643,24.09294886,146.97,146.96,0.03]
[1740801283853,33.59164076,146.97,146.96,0.03]
[1740801286051,29.59164076,146.97,146.96,0.03]
[1740801286549,24.09294886,146.97,146.96,0.03]
[1740801286852,26.09294886,146.97,146.96,0.03]
[1740801287053,24.09294886,146.97,146.96,0.03]
[1740801288442,28.09294886,146.97,146.96,0.03]
[1740801288953,34.49294886,146.97,146.96,0.03]
[1740801291966,20.0,146.93,146.91,0.03]
[1740801292261,25.04964886,146.92,146.91,0.03]
[1740801292847,105.74964886,146.92,146.91,0.03]
[1740801293655,111.19474886,146.92,146.91,0.03]
[1740801293860,111.19474886,146.92,146.85,4.09508648]
[1740801294061,80.7,146.91,146.85,4.09508648]
[1740801294258,99.34964886,146.9,146.85,0.03]
[1740801294448,80.7,146.89,146.85,0.03]
[1740801294774,80.7,146.88,146.85,0.03]
[1740801295446,80.7,146.88,146.85,5.4776]
[1740801298390,105.74964886,146.87,146.85,0.03]
[1740801300182,87.1,146.87,146.85,0.03]
[1740801301651,80.7,146.86,146.85,0.03]
[1740801301852,18.64964886,146.86,146.85,0.03]
[1740801302067,24.09694886,146.86,146.85,0.03]
[1740801302469,11.8471,146.87,146.85,0.03]
[1740801302662,6.4,146.87,146.85,0.03]
[1740801303970,24.09694886,146.86,146.85,0.03]
[1740801304565,18.64964886,146.86,146.85,0.03]
[1740801305376,24.09694886,146.86,146.85,0.03]
[1740801306466,26.09694886,146.86,146.85,0.03]
[1740801307566,24.09694886,146.86,146.85,0.03]
[1740801307761,26.09694886,146.86,146.85,0.03]
[1740801307965,28.09694886,146.86,146.85,0.03]
[1740801308674,28.09694886,146.86,146.85,0.0001]
[1740801310388,26.09694886,146.86,146.85,0.0001]
[1740801311193,28.09694886,146.86,146.85,0.0001]
[1740801311395,28.09694886,146.86,146.81,0.03]
[1740801311396,40.64964886,146.84,146.81,0.03]
[1740801311593,38.64964886,146.82,146.81,0.03]
[1740801311797,45.04964886,146.82,146.81,0.03]
[1740801312468,47.04964886,146.82,146.81,0.03]
[1740801313195,49.04964886,146.82,146.81,0.03]
[1740801313573,54.49844886,146.82,146.81,0.03]
[1740801313774,50.49844886,146.82,146.81,0.03]
[1740801314273,53.93475995,146.82,146.81,0.03]
[1740801314676,55.93475995,146.82,146.81,0.03]
[1740801315085,53.93475995,146.82,146.81,0.03]
[1740801317978,55.93475995,146.82,146.81,0.03]
[1740801318371,62.14005995,146.82,146.81,0.03]
[1740801318885,60.14005995,146.82,146.81,0.03]
[1740801319286,20.64964886,146.81,146.75,3.5048566]
[1740801319798,18.64964886,146.81,146.75,3.5048566]
[1740801319979,5.4495,146.8,146.75,3.5048566]
[1740801320180,18.64964886,146.79,146.75,3.5048566]
[1740801321894,18.64964886,146.81,146.75,3.5048566]
[1740801322201,5.4495,146.8,146.75,3.0048566]
[1740801322892,18.64964886,146.79,146.75,3.0048566]
[1740801324094,5.4492,146.81,146.75,3.0048566]
[1740801324285,3.43517691,146.78,146.75,3.0048566]
[1740801324598,18.64964886,146.76,146.75,3.0048566]
[1740801325900,18.64964886,146.76,146.75,3.0348566]
[1740801326109,24.10064886,146.76,146.75,3.0348566]
[1740801326403,26.10064886,146.76,146.75,3.0348566]
[1740801326606,18.64964886,146.72,146.7,0.03]
[1740801326904,25.04964886,146.71,146.7,0.03]
[1740801327683,6.4,146.71,146.7,0.03]
[1740801327883,6.4,146.71,146.7,0.3576888]
[1740801328389,15.6276,146.76,146.7,0.3576888]
[1740801328390,5.4507,146.77,146.7,0.3576888]
[1740801328611,6.4,146.76,146.7,0.3576888]
[1740801328905,25.04964886,146.76,146.7,0.3576888]
[1740801329292,3.43143765,146.75,146.7,0.3576888]
[1740801329492,6.4,146.76,146.7,5.8109888]
[1740801329696,6.4,146.76,146.71,6.3557]
[1740801330103,6.4,146.76,146.72,5.4525]
[1740801330409,25.04964886,146.77,146.72,6.9604]
[1740801331108,6.4,146.77,146.72,6.9604]
[1740801333305,80.7,146.76,146.72,6.9604]
[1740801334800,80.7,146.76,146.72,20.5918]
[1740801336409,18.64964886,146.8,146.72,20.5918]
[1740801336410,80.7,146.8,146.75,20.0]
[1740801336596,80.7,146.82,146.75,20.0]
[1740801336997,80.7,146.82,146.76,7.8636]
[1740801338215,80.7,146.82,146.77,5.4507]
[1740801338399,80.7,146.81,146.76,7.8636]
[1740801339401,80.7,146.81,146.76,13.3146]
[1740801341109,80.7,146.81,146.76,7.8636]
[1740801341307,6.4,146.8,146.76,1.5079]
[1740801341514,80.7,146.79,146.76,1.5079]
[1740801341813,80.7,146.79,146.76,6.9589]
[1740801343102,80.7,146.79,146.76,1.5079]
[1740801343729,80.7,146.79,146.76,6.9589]
[1740801344223,80.7,146.79,146.76,1.5079]
[1740801344419,86.15,146.79,146.76,1.5079]
[1740801345225,80.7,146.79,146.76,1.5079]
[1740801345405,80.7,146.79,146.76,6.9588]
[1740801348122,80.7,146.79,146.76,1.5079]
[1740801348508,80.7,146.79,146.76,6.9588]
[1740801351024,80.763,146.79,146.76,6.9588]
[1740801351845,80.763,146.79,146.76,20.5864]
[1740801352005,0.063,146.79,146.76,20.5864]
[1740801353221,0.063,146.79,146.77,4.07051406]
[1740801354418,0.063,146.79,146.78,5.4503]
[1740801355121,0.063,146.79,146.78,15.73171406]
[1740801357927,0.063,146.79,146.78,4.07051406]
[1740801359210,0.063,146.79,146.76,4.07051406]
[1740801359211,86.1504,146.78,146.76,4.07051406]
[1740801360534,86.1504,146.78,146.75,0.3276888]
[1740801360715,20.0,146.74,146.72,0.03]
[1740801361036,80.7,146.73,146.72,0.03]
[1740801361411,86.1521,146.73,146.72,0.03]
[1740801363047,104.80174886,146.73,146.72,0.03]
[1740801363223,24.10174886,146.73,146.72,0.03]
[1740801363817,20.0,146.71,146.7,0.03]
[1740801364038,20.64964886,146.72,146.7,0.03]
[1740801364438,24.10254886,146.71,146.7,0.03]
[1740801365338,18.64964886,146.66,146.61,4.07051406]
[1740801365643,6.4,146.65,146.61,4.07051406]
[1740801366138,20.0,146.62,146.61,4.07051406]
[1740801366339,22.12230456,146.64,146.57,5.4581]
[1740801366540,6.4,146.65,146.59,6.26199397]
[1740801366718,7.9732,146.71,146.59,6.26199397]
[1740801367023,20.0,146.67,146.6,6.0509]
[1740801367336,20.0,146.63,146.6,6.0509]
[1740801367537,20.0,146.67,146.6,6.0509]
[1740801367724,18.64964886,146.66,146.6,6.0509]
[1740801367925,99.34964886,146.66,146.6,6.0509]
[1740801368527,99.34964886,146.66,146.6,11.5078]
[1740801369649,104.80444886,146.66,146.6,11.5078]
[1740801371245,80.7,146.65,146.6,11.5078]
[1740801372347,80.7,146.65,146.6,25.1503]
[1740801374736,80.7,146.65,146.6,11.5078]
[1740801374935,80.7,146.68,146.6,11.5078]
[1740801375234,80.7,146.68,146.61,1.5009]
[1740801376851,80.7,146.68,146.62,5.4562]
[1740801378953,80.7,146.68,146.62,19.0969]
[1740801381450,80.7,146.67,146.61,1.5009]
[1740801381747,80.7,146.67,146.61,6.9574]
[1740801382759,86.1545,146.67,146.61,6.9574]
[1740801384852,80.7,146.66,146.61,6.9574]
[1740801386868,86.1547,146.66,146.61,6.9874]
[1740801387050,80.7,146.65,146.61,1.5309]
[1740801387868,80.7,146.64,146.61,1.5309]
[1740801388372,80.7,146.64,146.61,0.03]
[1740801393247,80.7,146.63,146.61,0.03]
[1740801393652,11.8562,146.62,146.61,0.03]
[1740801393977,6.4,146.62,146.61,0.03]
[1740801398785,6.4,146.62,146.57,0.03]
[1740801398786,1.6407,146.6,146.57,0.03]
[1740801398950,80.7,146.59,146.57,0.03]
[1740801399782,87.1,146.62,146.57,0.03]
[1740801400106,6.4,146.62,146.57,0.03]
[1740801400275,80.7,146.65,146.57,0.03]
[1740801400276,86.1551,146.65,146.57,0.03]
[1740801401711,18.64964886,146.64,146.57,0.03]
[1740801401881,80.7,146.63,146.57,0.03]
[1740801402898,99.34964886,146.62,146.57,0.03]
[1740801403182,18.64964886,146.6,146.57,0.03]
[1740801403525,80.7,146.59,146.57,0.03]
[1740801403706,5.4577,146.58,146.57,0.03]
[1740801404214,80.7,146.59,146.57,0.03]
[1740801404392,86.1574,146.59,146.57,0.03]
[1740801404590,80.7,146.59,146.57,0.03]
[1740801404909,105.43224886,146.58,146.5,0.590089]
[1740801405109,87.1,146.57,146.5,0.590089]
[1740801405606,6.4,146.57,146.5,0.590089]
[1740801405781,5.4585,146.56,146.5,0.590089]
[1740801406197,80.7,146.55,146.5,0.590089]
[1740801407607,5.4592,146.54,146.5,0.590089]
[1740801408192,20.0,146.51,146.5,0.590089]
[1740801408394,6.44,146.52,146.5,0.590089]
[1740801409812,5.4603,146.51,146.5,0.590089]
[1740801410013,11.9001,146.52,146.45,0.9883574]
[1740801410216,6.4834,146.51,146.44,4.07114576]
[1740801410420,87.1834,146.51,146.44,4.07114576]
[1740801410596,80.7,146.51,146.44,4.07114576]
[1740801410797,11.9001,146.52,146.44,9.53384576]
[1740801411039,6.44,146.52,146.44,9.53384576]
[1740801411217,6.44,146.52,146.45,6.1686]
[1740801411596,86.1592,146.54,146.46,5.4622]
[1740801411906,80.7,146.54,146.46,5.4622]
[1740801412105,86.1593,146.54,146.46,5.4622]
[1740801412503,8.4834,146.49,146.35,5.4663]
[1740801412821,6.88,146.48,146.36,2.0]
[1740801413196,6.88,146.48,146.35,228.4663]
[1740801413396,18.64964886,146.47,146.35,9.52601508]
[1740801413597,5.4618,146.47,146.35,13.52601508]
[1740801414226,5.4618,146.47,146.35,11.52601508]
[1740801414397,24.11144886,146.47,146.35,11.52601508]
[1740801414601,22.64964886,146.46,146.35,4.05971508]
[1740801414815,2.0,146.42,146.36,4.05971508]
[1740801415020,6.96,146.41,146.36,4.05971508]
[1740801415215,12.35081223,146.46,146.36,4.05971508]
[1740801415412,6.96,146.46,146.37,7.7317]
[1740801415924,5.4626,146.45,146.37,7.7317]
[1740801416147,6.96,146.46,146.37,7.7317]
[1740801416305,25.60964886,146.46,146.37,7.7317]
[1740801416620,31.07204886,146.46,146.37,7.7317]
[1740801417111,25.60964886,146.46,146.37,7.7317]
[1740801418027,6.96,146.46,146.37,13.1971]
[1740801418933,4.0,146.45,146.28,83.0]
[1740801419104,20.0,146.43,146.3,4.0]
[1740801419304,20.0,146.43,146.31,6.1686]
[1740801419720,6.96,146.46,146.34,20.0]
[1740801419920,6.96,146.46,146.34,27.0295]
[1740801420727,6.96,146.46,146.34,110.0295]
[1740801420930,6.96,146.46,146.34,125.6963]
[1740801421334,18.64964886,146.48,146.34,132.7363]
[1740801421522,7.04,146.47,146.34,132.7363]
[1740801422431,20.0,146.4,146.27,5.4693]
[1740801422637,7.22,146.39,146.27,7.4693]
[1740801423010,7.22,146.39,146.27,9.4693]
[1740801423737,7.22,146.39,146.27,19.1426]
[1740801423916,7.22,146.39,146.27,21.1426]
[1740801424108,7.22,146.39,146.34,0.03]
[1740801424820,7.22,146.39,146.29,2.0]
[1740801425714,6.464,146.38,146.24,2.0]
[1740801426224,7.22,146.39,146.27,9.8459]
[1740801426421,7.22,146.39,146.27,11.8459]
[1740801426634,7.22,146.39,146.28,2.0]
[1740801426819,7.22,146.39,146.28,4.0]
[1740801427015,7.22,146.39,146.28,2.0]
[1740801427220,7.22,146.39,146.29,2.0]
[1740801427434,7.22,146.39,146.27,7.8459]
[1740801427636,7.22,146.39,146.27,13.3149]
[1740801428519,12.6849,146.39,146.27,13.3149]
[1740801428936,3.35752809,146.34,146.21,5.4715]
[1740801429141,20.0,146.3,146.21,5.4715]
[1740801429529,18.64964886,146.32,146.21,5.4715]
[1740801429838,24.11714886,146.32,146.2,25.4719]
[1740801430140,24.11714886,146.32,146.2,5.4719]
[1740801430141,20.0,146.29,146.2,5.4719]
[1740801430347,5.4675,146.32,146.19,88.4722]
[1740801430637,6.3229,146.31,146.18,2.0]
[1740801430842,6.3229,146.31,146.17,2.0]
[1740801431138,18.64964886,146.3,146.19,20.0]
[1740801431335,6.3229,146.31,146.19,105.0]
[1740801431542,12.8871,146.33,146.22,20.0]
[1740801431722,18.64964886,146.32,146.22,20.0]
[1740801431924,24.11704886,146.32,146.22,20.0]
[1740801432331,24.11704886,146.32,146.22,25.471]
[1740801432645,12.8872,146.33,146.22,25.471]
[1740801432831,7.42,146.33,146.22,25.471]
[1740801433443,7.42,146.33,146.19,95.9121]
[1740801433444,18.64964886,146.32,146.19,95.9121]
[1740801433830,24.11724886,146.32,146.19,95.9121]
[1740801434938,5.4676,146.32,146.21,5.4715]
[1740801436141,5.4676,146.32,146.21,81.0]
[1740801436441,5.4676,146.32,146.22,1.6438]
[1740801436621,6.3229,146.35,146.23,8.4704]
[1740801436945,5.4656,146.37,146.24,2.0]
[1740801437158,5.4656,146.37,146.24,83.0]
[1740801437375,5.4656,146.37,146.25,7.4]
[1740801438035,5.4656,146.37,146.26,5.4697]
[1740801438621,18.64964886,146.36,146.26,5.4697]
[1740801439451,5.4656,146.37,146.26,5.4697]
[1740801445148,5.4656,146.37,146.27,1.6159]
[1740801446150,5.4656,146.37,146.28,5.4689]
[1740801447432,19.1296,146.37,146.28,5.4689]
[1740801448546,19.1296,146.37,146.27,7.0851]
[1740801449348,18.64964886,146.36,146.27,7.0851]
[1740801450734,5.4663,146.35,146.27,7.0851]
[1740801453360,4.0,146.32,146.16,3.5867788]
[1740801453544,26.09786781,146.31,146.16,3.5867788]
[1740801453740,18.64964886,146.27,146.16,3.5867788]
[1740801454255,20.0,146.28,146.16,3.5867788]
[1740801454256,3.50554163,146.26,146.16,3.5867788]
[1740801454467,7.34,146.25,146.16,3.5867788]
[1740801454644,7.34,146.25,146.16,3.0867788]
[1740801455649,5.4704,146.24,146.16,3.0867788]
[1740801455961,12.8101,146.25,146.16,3.0867788]
[1740801456350,12.8101,146.25,146.16,8.5600788]
[1740801458961,24.12024886,146.24,146.16,3.0867788]
[1740801460562,5.4709,146.23,146.16,3.0867788]
[1740801460758,7.34,146.25,146.16,3.0867788]
[1740801460961,5.4704,146.24,146.16,3.0867788]
[1740801461169,7.34,146.25,146.16,3.0867788]
[1740801461472,12.8101,146.25,146.16,8.5600788]
[1740801461967,12.8101,146.25,146.16,8.5900788]
[1740801463565,5.4705,146.24,146.16,8.5900788]
[1740801464641,20.0,146.22,146.16,8.5900788]
[1740801464869,12.8101,146.25,146.16,8.5900788]
[1740801466673,7.34,146.25,146.16,8.5900788]
[1740801467453,12.8101,146.25,146.16,8.5900788]
[1740801468753,12.8101,146.25,146.16,22.2736788]
[1740801468754,7.34,146.25,146.16,22.2736788]
[1740801471390,8.84019223,146.27,146.16,22.2736788]
[1740801471685,3.37079223,146.27,146.16,103.2736788]
[1740801472275,7.16,146.28,146.16,105.2736788]
[1740801472657,7.16,146.3,146.19,2.0]
[1740801472874,7.16,146.3,146.19,81.0]
[1740801473475,7.16,146.3,146.19,83.0]
[1740801473978,7.16,146.3,146.2,19.1517]
[1740801475370,7.16,146.3,146.21,1.5041]
[1740801475576,7.16,146.3,146.22,19.1492]
[1740801476586,89.63055176,146.32,146.22,19.1492]
[1740801477259,80.7,146.32,146.22,19.1492]
[1740801478482,86.1676,146.32,146.22,19.1492]
[1740801479264,20.0,146.28,146.19,5.4723]
[1740801480465,5.4693,146.27,146.19,5.4723]
[1740801481170,12.6493,146.27,146.18,6.9766]
[1740801485892,12.7123,146.27,146.18,6.9766]
[1740801486108,20.0,146.19,146.16,3.1167788]
[1740801486276,16.77786781,146.22,146.16,3.1167788]
[1740801486277,7.24,146.18,146.16,3.1167788]
[1740801487979,18.64964886,146.17,146.16,7.88e-05]
[1740801488182,27.53360461,146.17,146.16,7.88e-05]
[1740801489297,18.64964886,146.13,146.01,20.3895]
[1740801489482,18.64964886,146.13,146.01,20.808685]
[1740801489795,20.0,146.14,146.04,20.0]
[1740801490301,25.4742,146.14,146.04,25.4777]
[1740801490485,20.0,146.14,146.04,25.4777]
[1740801490696,20.0,146.15,146.04,27.4777]
[1740801491088,8.88405575,146.17,146.05,2.0]
[1740801491289,3.41095575,146.17,146.05,83.0]
[1740801491709,8.88395575,146.17,146.05,81.0]
[1740801491898,3.41095575,146.17,146.06,4.0]
[1740801492215,3.51605209,146.19,146.08,8.2306]
[1740801492397,10.71605209,146.19,146.08,89.2306]
[1740801492709,80.7,146.2,146.09,2.0]
[1740801492887,12.6716,146.21,146.08,10.2306]
[1740801493087,18.64964886,146.19,146.08,8.2306]
[1740801493497,80.7,146.18,146.08,8.2306]
[1740801494216,80.7,146.18,146.09,5.476]
[1740801494584,86.1728,146.18,146.09,5.476]
[1740801494990,80.7,146.18,146.09,5.476]
[1740801496212,86.1727,146.18,146.09,5.476]
[1740801498000,80.7,146.18,146.09,5.476]
[1740801499405,86.1727,146.18,146.09,5.476]
[1740801499994,80.7,146.18,146.09,5.476]
[1740801500297,86.1728,146.18,146.09,5.476]
[1740801501017,36.77786781,146.14,146.08,0.03]
[1740801501314,107.21644886,146.17,146.08,0.03]
[1740801501315,7.28,146.13,146.08,0.03]
[1740801501519,91.46766231,146.17,146.08,0.03]
[1740801501716,87.98,146.17,146.08,5.5063]
[1740801502208,201.4112,146.23,146.11,2.0]
[1740801502414,7.28,146.22,146.11,2.0]
[1740801502614,7.28,146.22,146.1,229.2306]
[1740801503411,12.7512,146.22,146.11,5.4753]
[1740801504607,12.7512,146.22,146.11,5.894485]
[1740801506005,12.7512,146.22,146.11,86.894485]
[1740801506826,20.0,146.14,146.11,0.419185]
[1740801506997,88.12,146.13,146.11,0.419185]
[1740801508723,5.4749,146.12,146.11,0.419185]
[1740801511408,88.12,146.13,146.11,0.419185]
[1740801511612,7.42,146.13,146.11,0.419185]
[1740801512129,80.7,146.12,146.11,0.419185]
[1740801512507,86.1749,146.12,146.11,0.419185]
[1740801515536,104.82454886,146.12,146.11,0.419185]
[1740801517132,24.12454886,146.12,146.01,7.6154]
[1740801517311,80.7,146.11,146.01,7.6154]
[1740801517509,18.64964886,146.1,146.01,7.6154]
[1740801518210,80.7,146.09,146.01,7.6154]
[1740801518719,5.4764,146.08,146.01,7.6154]
[1740801518926,5.4764,146.08,146.01,13.0943]
[1740801519226,12.8134,146.16,146.02,2.0]
[1740801519422,7.34,146.16,146.04,2.0]
[1740801519609,7.34,146.16,146.05,1.5982]
[1740801519804,88.04,146.17,146.06,6.2129]
[1740801520527,88.04,146.17,146.06,8.2129]
[1740801520727,0.063,146.18,146.1,1.5982]
[1740801520929,0.063,146.18,146.1,101.7631]
[1740801522934,0.063,146.18,146.1,7.0739]
[1740801523135,0.063,146.17,146.1,7.0739]
[1740801523431,0.063,146.17,146.1,7.0737]
[1740801523631,0.063,146.17,146.07,13.6915]
[1740801524919,80.7,146.16,146.07,5.4768]
[1740801525322,1.5045,146.15,146.07,5.4768]
[1740801525527,7.38,146.14,146.06,5.507]
[1740801525730,20.0,146.11,146.06,0.03]
[1740801526015,20.0,146.1,146.06,0.03]
[1740801526712,25.4757,146.1,146.06,0.03]
[1740801527533,20.0,146.1,146.06,0.03]
[1740801528631,18.64964886,146.09,146.06,0.03]
[1740801528941,80.7,146.09,146.06,0.03]
[1740801532338,86.1761,146.09,146.06,0.03]
[1740801532544,5.4761,146.09,146.06,0.03]
[1740801532838,5.4753,146.11,146.06,0.03]
[1740801534118,19.1636,146.11,146.06,0.03]
[1740801535126,18.64964886,146.1,146.06,0.03]
[1740801535332,5.4757,146.1,146.06,0.03]
[1740801537048,80.763,146.12,146.06,0.03]
[1740801537418,80.763,146.12,146.02,2.0]
[1740801537617,0.063,146.12,146.02,83.0]
[1740801539148,0.063,146.12,146.04,8.3678]
[1740801539529,0.063,146.12,146.04,6.3678]
[1740801540641,0.063,146.12,146.05,5.4775]
[1740801542558,0.063,146.12,146.05,100.1714]
[1740801543058,0.063,146.12,146.05,102.1714]
[1740801543450,0.063,146.12,146.06,1.6343]
[1740801543646,0.063,146.12,146.07,5.4768]
[1740801544961,0.063,146.12,146.07,19.1688]
[1740801545256,0.063,146.12,146.07,100.1688]
[1740801545465,0.063,146.12,146.08,6.2128]
[1740801545759,0.063,146.12,146.08,227.2128]
[1740801545937,0.063,146.17,146.09,8.8158]
[1740801546132,0.063,146.17,146.09,89.8158]
[1740801546860,0.063,146.17,146.1,5.4757]
[1740801548554,0.063,146.17,146.1,19.1649]
[1740801548733,0.063,146.17,146.1,21.1649]
[1740801548933,0.063,146.17,146.1,240.1649]
[1740801549665,0.063,146.17,146.11,6.2961]
[1740801550073,0.063,146.17,146.11,87.2961]
[1740801550359,0.063,146.17,146.14,20.0]
[1740801550542,0.063,146.17,146.11,87.2961]
[1740801551338,0.063,146.17,146.12,3.5248]
[1740801552243,0.063,146.17,146.13,19.1609]
[1740801553071,0.063,146.17,146.13,26.2409]
[1740801553272,0.063,146.17,146.15,2.0]
[1740801553574,0.063,146.17,146.16,8.1527]
[1740801553774,0.063,146.18,146.16,8.1527]
[1740801554256,0.063,146.18,146.17,5.473]
[1740801555569,0.063,146.18,146.17,86.473]
[1740801555869,0.063,146.18,146.17,81.0]
[1740801556251,0.063,146.18,146.16,1.6005]
[1740801556770,0.063,146.18,146.12,6.5522]
[1740801556771,0.063,146.18,146.12,89.1527]
[1740801557974,0.063,146.18,146.07,5.4768]
[1740801559353,5.5357,146.18,146.07,5.4768]
[1740801561067,99.9174,146.18,146.06,8.1827]
[1740801561281,99.9174,146.18,146.06,13.6598]
[1740801562082,103.41240754,146.18,146.06,13.6598]
[1740801563464,86.2357,146.18,146.06,13.6598]
[1740801563758,86.2357,146.18,146.06,234.6598]
[1740801563964,86.2357,146.18,146.06,248.3528]
[1740801564387,80.763,146.18,146.06,248.3528]
[1740801565058,0.063,146.18,146.07,3.43684551]
[1740801565578,0.063,146.18,146.08,19.1675]
[1740801566578,0.063,146.18,146.08,21.1675]
[1740801566775,0.063,146.18,146.08,19.1675]
[1740801566977,0.063,146.18,146.08,240.1675]
[1740801567178,0.063,146.18,146.08,100.1675]
[1740801569285,0.063,146.18,146.08,102.1675]
[1740801569483,0.063,146.18,146.1,5.4757]
[1740801569676,0.063,146.18,146.1,86.4757]
[1740801570187,0.063,146.18,146.1,100.1649]
[1740801573568,0.063,146.18,146.1,100.1949]
[1740801576270,0.063,146.18,146.1,240.1949]
[1740801577199,0.063,146.18,146.11,22.08619191]
[1740801577377,0.063,146.18,146.12,2.0]
[1740801578083,0.063,146.18,146.15,20.0]
[1740801578475,0.063,146.18,146.16,5.4734]